bitfinex-derivatives/quotes_BTCF0:USTF0_20250501
["timestamp","ask_amount","ask_price","bid_price","bid_amount"]
[1746107778741,0.2155527,95903.0,95902.0,0.21107899]
[1746107779348,0.2155527,95903.0,95902.0,0.21891243]
[1746107780650,0.00704,95903.0,95902.0,0.21891243]
[1746107780847,0.007,95903.0,95902.0,0.32318443]
[1746107781045,0.00704,95903.0,95902.0,0.32318443]
[1746107781350,0.007,95903.0,95902.0,0.57318443]
[1746107781545,0.00704,95903.0,95902.0,0.57318443]
[1746107781741,0.00704,95903.0,95902.0,0.32318443]
[1746107782648,0.00704,95903.0,95902.0,0.40570443]
[1746107783551,0.2155527,95903.0,95902.0,0.09291753]
[1746107783743,0.00704,95903.0,95902.0,0.30143243]
[1746107784746,0.00704,95903.0,95902.0,0.40570443]
[1746107784943,0.007,95903.0,95902.0,0.76650443]
[1746107785246,0.00704,95903.0,95902.0,0.76650443]
[1746107785847,0.004,95903.0,95902.0,0.76550443]
[1746107786050,0.007,95903.0,95902.0,0.76650443]
[1746107786254,0.00704,95903.0,95902.0,0.76650443]
[1746107786855,0.00704,95903.0,95902.0,0.57971243]
[1746107787052,0.00704,95903.0,95902.0,0.66223243]
[1746107787853,0.00704,95903.0,95902.0,0.76650443]
[1746107788047,5.401e-05,95915.0,95914.0,0.2084888]
[1746107789344,0.15125401,95915.0,95914.0,0.3582888]
[1746107790453,0.15525401,95915.0,95912.0,0.2084888]
[1746107790660,0.36674391,95915.0,95914.0,0.2094888]
[1746107790856,0.36674391,95915.0,95914.0,0.001]
[1746107791250,0.36674391,95915.0,95914.0,0.2094888]
[1746107791461,0.72354391,95915.0,95914.0,0.2114888]
[1746107791754,0.72054391,95915.0,95914.0,0.2104888]
[1746107791958,0.35974391,95915.0,95914.0,0.2104888]
[1746107793351,0.35974391,95915.0,95914.0,0.2084888]
[1746107793749,0.51205401,95915.0,95914.0,0.2084888]
[1746107793955,0.15125401,95915.0,95914.0,0.3717888]
[1746107794153,5.401e-05,95915.0,95914.0,0.3717888]
[1746107794460,0.0520995,95956.0,95945.0,0.2084214]
[1746107794650,0.20951772,95946.0,95945.0,0.3608]
[1746107794847,0.001,95946.0,95945.0,0.2084214]
[1746107795057,0.001,95946.0,95945.0,0.5692214]
[1746107795451,0.00104,95946.0,95945.0,0.5692214]
[1746107795647,0.00804,95946.0,95945.0,0.5702214]
[1746107795851,0.2164593,95946.0,95945.0,0.5702214]
[1746107796458,0.00804,95946.0,95945.0,0.5702214]
[1746107796659,5.401e-05,95953.0,95952.0,0.2084062]
[1746107796869,0.0015,95955.0,95954.0,0.2084019]
[1746107797052,0.1586,95964.0,95963.0,0.2083823]
[1746107797256,0.1586,95964.0,95963.0,0.5691823]
[1746107797662,0.3670202,95964.0,95963.0,0.5691823]
[1746107798165,0.15864,95964.0,95963.0,0.5691823]
[1746107798362,4e-05,95964.0,95963.0,0.5691823]
[1746107798562,5.401e-05,95974.0,95973.0,0.2083606]
[1746107799164,0.20841251,95974.0,95973.0,0.2083606]
[1746107799365,5.401e-05,95974.0,95973.0,0.2083606]
[1746107799761,0.001,95976.0,95975.0,0.2083563]
[1746107799963,0.2093541,95976.0,95975.0,0.2083563]
[1746107800159,0.2083585,95974.0,95973.0,0.001]
[1746107800559,0.2113585,95974.0,95973.0,0.001]
[1746107800953,0.2083628,95972.0,95971.0,0.3608]
[1746107801157,0.2083628,95972.0,95971.0,0.569165]
[1746107801362,0.2083628,95972.0,95971.0,0.3608]
[1746107801664,0.2084028,95972.0,95971.0,0.3608]
[1746107802259,0.2084028,95972.0,95971.0,0.3628]
[1746107803265,0.2124028,95972.0,95971.0,0.3638]
[1746107803658,0.2134028,95972.0,95971.0,0.3618]
[1746107804358,0.2134028,95972.0,95955.0,0.1616]
[1746107804359,0.720036,95972.0,95945.0,0.3608]
[1746107804566,0.2084193,95946.0,95945.0,0.5692201]
[1746107804765,0.2084193,95946.0,95945.0,0.3608]
[1746107805066,0.2084193,95946.0,95945.0,0.5692214]
[1746107805457,0.1539,95947.0,95946.0,0.2084193]
[1746107805663,0.1539,95947.0,95946.0,0.3592193]
[1746107805858,0.15394,95947.0,95946.0,0.5149193]
[1746107806769,0.3623571,95947.0,95946.0,0.5149193]
[1746107807277,0.3633571,95947.0,95946.0,0.5169193]
[1746107807570,0.3633571,95947.0,95946.0,0.5199193]
[1746107807764,0.15494,95947.0,95946.0,0.5179193]
[1746107807971,0.15394,95947.0,95946.0,0.5189193]
[1746107808470,0.1539,95947.0,95946.0,0.5189193]
[1746107808671,0.1539,95947.0,95946.0,0.5159193]
[1746107808872,0.1539,95947.0,95946.0,0.5189193]
[1746107809264,0.15394,95947.0,95946.0,0.5189193]
[1746107809467,0.15394,95947.0,95946.0,0.5179193]
[1746107809673,0.3623571,95947.0,95946.0,0.5179193]
[1746107810374,0.3623571,95947.0,95946.0,0.52586069]
[1746107812577,0.2084823,95917.0,95910.0,0.3608]
[1746107812776,0.2084844,95916.0,95901.0,0.3608]
[1746107813072,0.2085127,95903.0,95901.0,0.3608]
[1746107813865,0.5240127,95903.0,95901.0,0.3608]
[1746107814062,0.5220127,95903.0,95901.0,0.5693151]
[1746107814375,0.5220127,95903.0,95901.0,0.3608]
[1746107814582,0.5220127,95903.0,95902.0,0.21007899]
[1746107815075,0.5220127,95903.0,95902.0,0.21407899]
[1746107815472,0.5230127,95903.0,95902.0,0.21807899]
[1746107815672,0.3185,95903.0,95902.0,0.21807899]
[1746107815876,0.16004,95903.0,95902.0,0.52697899]
[1746107816674,0.3685527,95903.0,95902.0,0.52697899]
[1746107818370,0.3675527,95903.0,95902.0,0.52297899]
[1746107818566,0.3675527,95903.0,95902.0,0.16764888]
[1746107818770,0.3675527,95903.0,95902.0,0.00924888]
[1746107819985,0.3695527,95903.0,95902.0,0.01024888]
[1746107820279,0.3705527,95903.0,95902.0,0.01024888]
[1746107820986,0.3705527,95903.0,95902.0,0.21876378]
[1746107821182,0.3705527,95903.0,95902.0,0.01024888]
[1746107821385,0.3705127,95903.0,95902.0,0.01024888]
[1746107821584,0.3705527,95903.0,95902.0,0.01024888]
[1746107821980,0.3705527,95903.0,95902.0,0.21876378]
[1746107822290,0.3705527,95903.0,95902.0,0.01024888]
[1746107826083,0.3705527,95903.0,95886.0,0.0001029]
[1746107826084,0.0521315,95897.0,95886.0,0.0001029]
[1746107826287,0.2085475,95887.0,95886.0,0.0522396]
[1746107826481,0.2085475,95887.0,95886.0,0.3699396]
[1746107826682,0.2085475,95887.0,95886.0,0.578479]
[1746107826897,0.2085475,95887.0,95886.0,0.58646138]
[1746107827284,0.2085475,95887.0,95886.0,0.32578528]
[1746107827590,0.5230475,95887.0,95886.0,0.01108528]
[1746107828394,0.5240475,95887.0,95886.0,0.01308528]
[1746107829288,0.3165,95887.0,95886.0,0.01308528]
[1746107829488,0.3604475,95887.0,95886.0,0.53123498]
[1746107829690,0.3604475,95887.0,95886.0,0.01308528]
[1746107829893,0.3604875,95887.0,95886.0,0.01308528]
[1746107830190,0.3604875,95887.0,95885.0,0.00104291]
[1746107830191,0.0521375,95886.0,95871.0,0.3196]
[1746107830390,0.2085823,95871.0,95863.0,0.5693994]
[1746107830581,0.2085823,95871.0,95864.0,0.3178]
[1746107830787,0.2085823,95871.0,95866.0,0.0521481]
[1746107831189,0.2085888,95868.0,95863.0,0.3608]
[1746107831694,0.2025888,95868.0,95867.0,0.00932419]
[1746107831988,0.2005888,95868.0,95867.0,0.00156466]
[1746107832990,0.5613888,95868.0,95867.0,0.00156466]
[1746107833587,0.5633888,95868.0,95867.0,0.00256466]
[1746107833790,0.5643888,95868.0,95867.0,0.00256466]
[1746107834100,0.2086149,95856.0,95855.0,0.00104324]
[1746107834295,0.5694149,95856.0,95855.0,0.00104324]
[1746107834892,0.8775149,95856.0,95855.0,0.00104324]
[1746107835291,0.8785149,95856.0,95855.0,0.00104324]
[1746107835885,0.8785149,95856.0,95839.0,0.2150624]
[1746107835886,0.0521618,95842.0,95826.0,1.222]
[1746107836205,0.208665,95833.0,95823.0,0.082]
[1746107836500,0.208665,95833.0,95827.0,0.0521695]
[1746107836697,0.208665,95833.0,95829.0,0.3205]
[1746107836894,0.208665,95833.0,95832.0,0.00923798]
[1746107837093,0.519665,95833.0,95832.0,0.00923798]
[1746107837798,0.520665,95833.0,95832.0,0.00923798]
[1746107838599,0.2086737,95829.0,95828.0,0.3608]
[1746107839192,0.2087347,95801.0,95793.0,0.4129877]
[1746107839389,7.462e-05,95801.0,95797.0,0.0537516]
[1746107839591,7.462e-05,95801.0,95800.0,0.3216287]
[1746107839997,0.35791462,95810.0,95809.0,0.2087173]
[1746107840199,0.2087087,95813.0,95812.0,0.2087064]
[1746107840392,0.3683087,95813.0,95812.0,0.2087064]
[1746107840588,0.2087171,95811.0,95809.0,0.0521789]
[1746107840791,0.15964,95813.0,95809.0,0.0521789]
[1746107840792,0.1596,95813.0,95812.0,0.2087107]
[1746107840991,0.2608895,95814.0,95813.0,0.2087079]
[1746107841202,0.2087071,95816.0,95815.0,0.208702]
[1746107842195,0.3608,95818.0,95817.0,0.2086999]
[1746107842597,4e-05,95818.0,95817.0,0.56306389]
[1746107842905,0.5694737,95829.0,95828.0,0.2086759]
[1746107843498,0.2086759,95828.0,95827.0,0.5166781]
[1746107843695,0.3716759,95828.0,95827.0,0.5166781]
[1746107844102,0.2086759,95828.0,95827.0,0.5166781]
[1746107844597,0.2126759,95828.0,95827.0,0.5166781]
[1746107844796,0.2186759,95828.0,95827.0,0.5166781]
[1746107844998,0.2186759,95828.0,95827.0,0.308]
[1746107845200,0.3816759,95828.0,95827.0,0.308]
[1746107845993,0.3816759,95828.0,95827.0,0.5166781]
[1746107846197,0.009,95828.0,95827.0,0.5166781]
[1746107846404,0.2176759,95828.0,95827.0,0.5166781]
[1746107846700,0.052175,95817.0,95802.0,0.3608]
[1746107846895,0.4129782,95811.0,95802.0,0.3608]
[1746107847096,0.2087304,95805.0,95804.0,0.2609032]
[1746107847295,0.2087304,95805.0,95804.0,0.2087215]
[1746107847600,0.1606,95810.0,95809.0,0.2087173]
[1746107847988,0.2609095,95806.0,95803.0,0.2119824]
[1746107848196,0.2087282,95804.0,95803.0,0.1598]
[1746107848500,0.2077282,95804.0,95803.0,0.1598]
[1746107849503,0.3676282,95804.0,95803.0,0.1598]
[1746107850001,0.3666282,95804.0,95803.0,0.1598]
[1746107850202,0.2087304,95803.0,95802.0,0.3608]
[1746107850396,0.2087347,95801.0,95800.0,0.1128918]
[1746107850794,0.2077347,95801.0,95800.0,0.1128918]
[1746107850995,0.5685347,95801.0,95800.0,0.1128918]
[1746107851401,0.5675347,95801.0,95800.0,0.3216287]
[1746107851596,0.5675747,95801.0,95800.0,0.3216287]
[1746107851997,0.5685747,95801.0,95800.0,0.3226287]
[1746107852403,0.5685347,95801.0,95800.0,0.3226287]
[1746107852600,0.36184,95801.0,95800.0,0.3226287]
[1746107852797,0.001,95801.0,95800.0,0.3226287]
[1746107853198,0.00104,95801.0,95800.0,0.3226287]
[1746107853407,0.2097747,95801.0,95800.0,0.3226287]
[1746107853707,0.00104,95801.0,95800.0,0.3226287]
[1746107853906,0.2107747,95801.0,95800.0,0.3226287]
[1746107854693,0.5715747,95801.0,95800.0,0.3226287]
[1746107855195,0.5715747,95801.0,95800.0,0.4270127]
[1746107855196,0.00204,95801.0,95800.0,0.4270127]
[1746107855598,0.002,95801.0,95800.0,0.4270127]
[1746107855804,0.00204,95801.0,95800.0,0.4270127]
[1746107856301,0.00204,95801.0,95800.0,0.4047087]
[1746107856508,0.00204,95801.0,95800.0,0.5090927]
[1746107856706,0.00104,95801.0,95800.0,0.5090927]
[1746107856912,0.002,95801.0,95800.0,0.5090927]
[1746107857099,0.00204,95801.0,95800.0,0.5090927]
[1746107857502,0.00404,95801.0,95800.0,0.5080927]
[1746107857698,0.00304,95801.0,95800.0,0.5080927]
[1746107857896,0.2127747,95801.0,95800.0,0.1949718]
[1746107858101,0.2137747,95801.0,95800.0,0.4037087]
[1746107858408,0.00504,95801.0,95800.0,0.4037087]
[1746107858600,0.00504,95801.0,95800.0,0.7250087]
[1746107858796,0.005,95801.0,95800.0,0.8293927]
[1746107859206,0.00504,95801.0,95800.0,0.7473127]
[1746107859408,0.006,95801.0,95800.0,0.7473127]
[1746107859709,0.00604,95801.0,95800.0,0.7473127]
[1746107860205,0.00604,95801.0,95800.0,0.6429287]
[1746107860802,0.00504,95801.0,95800.0,0.6429287]
[1746107861001,0.00704,95801.0,95800.0,0.6429287]
[1746107861203,0.00604,95801.0,95800.0,0.6429287]
[1746107861811,0.00704,95801.0,95800.0,0.6429287]
[1746107862513,0.3775747,95801.0,95800.0,0.4801287]
[1746107862714,0.31814,95801.0,95800.0,0.4801287]
[1746107862908,0.16884,95801.0,95800.0,0.4801287]
[1746107863412,0.2087327,95802.0,95801.0,0.2087347]
[1746107863611,0.2087327,95802.0,95801.0,0.5106347]
[1746107863810,0.5695327,95802.0,95801.0,0.5106347]
[1746107864004,0.2087327,95802.0,95801.0,0.5106347]
[1746107864206,0.2087327,95802.0,95801.0,0.1527]
[1746107864414,0.2087327,95802.0,95801.0,0.3614347]
[1746107864613,0.2147327,95802.0,95801.0,0.3614347]
[1746107864917,0.006,95802.0,95801.0,0.3614347]
[1746107865116,0.3588304,95803.0,95802.0,0.2087325]
[1746107865501,0.3608,95805.0,95804.0,0.2087282]
[1746107865706,0.569526,95805.0,95804.0,0.2087282]
[1746107866113,0.569566,95805.0,95804.0,0.2087282]
[1746107866315,0.569526,95805.0,95804.0,0.2087282]
[1746107866515,0.569566,95805.0,95804.0,0.2087282]
[1746107866711,4e-05,95805.0,95804.0,0.5695282]
[1746107866917,0.00013287,95837.0,95833.0,0.0521657]
[1746107867106,0.00013287,95837.0,95836.0,0.5694585]
[1746107867303,0.07860434,95848.0,95842.0,0.2086454]
[1746107867503,0.07860434,95848.0,95847.0,0.2086345]
[1746107868609,0.08560434,95848.0,95847.0,0.2086345]
[1746107868810,0.08564434,95848.0,95847.0,0.2086345]
[1746107869220,0.08564434,95848.0,95845.0,0.2086381]
[1746107869416,0.2086411,95844.0,95843.0,0.208637]
[1746107870119,0.5258411,95844.0,95843.0,0.208637]
[1746107870319,0.2086432,95843.0,95842.0,0.3608]
[1746107870506,0.10433601,95843.0,95812.0,0.08176]
[1746107870821,0.208718,95811.0,95810.0,0.2608937]
[1746107871008,0.2087094,95813.0,95812.0,0.2087086]
[1746107871209,0.5695094,95813.0,95812.0,0.2087086]
[1746107871611,0.678,95813.0,95812.0,0.2087086]
[1746107871810,0.2086905,95822.0,95821.0,0.208689]
[1746107872117,0.3635905,95822.0,95821.0,0.208689]
[1746107872518,0.1549,95822.0,95821.0,0.208689]
[1746107873021,0.15494,95822.0,95821.0,0.208689]
[1746107873610,0.363629,95822.0,95821.0,0.208689]
[1746107873814,0.15494,95822.0,95821.0,0.208689]
[1746107874015,4e-05,95822.0,95821.0,0.208689]
[1746107874221,0.00404,95822.0,95821.0,0.208689]
[1746107874415,0.004,95822.0,95821.0,0.208689]
[1746107874616,0.01004,95822.0,95821.0,0.209689]
[1746107874921,0.218729,95822.0,95821.0,0.209689]
[1746107875630,0.01004,95822.0,95821.0,0.209689]
[1746107875824,0.217729,95822.0,95821.0,0.209689]
[1746107876026,0.00904,95822.0,95821.0,0.209689]
[1746107876323,0.217729,95822.0,95821.0,0.209689]
[1746107876511,0.214729,95822.0,95821.0,0.209689]
[1746107876709,0.211729,95822.0,95821.0,0.208689]
[1746107876909,0.216729,95822.0,95821.0,0.209689]
[1746107877119,0.00804,95822.0,95821.0,0.209689]
[1746107877319,0.213729,95822.0,95821.0,0.209689]
[1746107877524,0.216729,95822.0,95821.0,0.209689]
[1746107878224,0.00804,95822.0,95821.0,0.209689]
[1746107879023,5.401e-05,95837.0,95836.0,0.2086585]
[1746107879321,7.291e-05,95845.0,95844.0,0.2086411]
[1746107879519,0.0015,95850.0,95849.0,0.2086302]
[1746107881130,0.00154,95850.0,95849.0,0.21640698]
[1746107881317,0.0015,95850.0,95849.0,0.21640698]
[1746107881523,0.01254,95850.0,95849.0,0.21740698]
[1746107882229,0.221168,95850.0,95849.0,0.21740698]
[1746107882528,0.02154,95850.0,95849.0,0.21840698]
[1746107882729,0.230168,95850.0,95849.0,0.00977678]
[1746107883127,0.01154,95850.0,95849.0,0.21840698]
[1746107883330,0.0115,95850.0,95849.0,0.2106302]
[1746107883519,0.580968,95850.0,95849.0,0.00994261]
[1746107885224,0.581968,95850.0,95849.0,0.00994261]
[1746107885429,0.221128,95850.0,95849.0,0.57937281]
[1746107885640,0.01254,95850.0,95849.0,0.57937281]
[1746107885826,0.0125,95850.0,95849.0,0.57937281]
[1746107886136,0.01254,95850.0,95849.0,0.57937281]
[1746107886942,0.221168,95850.0,95849.0,0.57937281]
[1746107887331,0.221168,95850.0,95849.0,0.00994261]
[1746107889834,0.0521581,95848.0,95830.0,0.3608]
[1746107890139,0.36687201,95850.0,95830.0,0.3608]
[1746107890140,0.2086694,95831.0,95830.0,0.3608]
[1746107890328,0.3608,95839.0,95830.0,0.36867417]
[1746107890530,0.5252636,95837.0,95836.0,0.2086541]
[1746107890737,0.2086672,95832.0,95831.0,0.3679627]
[1746107891041,0.2087072,95832.0,95831.0,0.3679627]
[1746107891428,0.2087072,95832.0,95830.0,0.06004197]
[1746107891429,0.2086694,95831.0,95830.0,0.00787417]
[1746107891634,0.3199,95831.0,95830.0,0.2096715]
[1746107891841,4e-05,95832.0,95831.0,0.2086694]
[1746107891842,0.2107082,95832.0,95831.0,0.2086694]
[1746107892042,0.2107082,95832.0,95831.0,0.3679694]
[1746107892530,0.2137082,95832.0,95831.0,0.3689694]
[1746107893133,0.2107082,95832.0,95831.0,0.3689694]
[1746107893334,0.2137082,95832.0,95831.0,0.001]
[1746107893638,0.5341082,95832.0,95831.0,0.001]
[1746107894845,0.5391082,95832.0,95831.0,0.002]
[1746107896044,0.5391082,95832.0,95816.0,0.2087004]
[1746107896045,0.208702,95817.0,95816.0,0.2087004]
[1746107896441,0.3231,95818.0,95817.0,0.2086999]
[1746107896740,0.2086977,95818.0,95817.0,0.2608744]
[1746107897543,0.06724945,95843.0,95819.0,0.0521729]
[1746107897738,0.2608638,95822.0,95821.0,0.2608562]
[1746107897939,0.2608638,95822.0,95821.0,0.370784]
[1746107898751,0.2609038,95822.0,95821.0,0.370784]
[1746107899042,0.2649038,95822.0,95821.0,0.371784]
[1746107899939,0.00404,95822.0,95821.0,0.371784]
[1746107900139,0.00904,95822.0,95821.0,0.372784]
[1746107900337,0.009,95822.0,95821.0,0.372784]
[1746107900532,0.212689,95822.0,95821.0,0.371784]
[1746107900739,0.217729,95822.0,95821.0,0.372784]
[1746107901133,0.212729,95822.0,95821.0,0.371784]
[1746107901340,0.215729,95822.0,95821.0,0.371784]
[1746107901846,0.546729,95822.0,95821.0,0.372784]
[1746107902237,0.545729,95822.0,95821.0,0.372784]
[1746107902530,0.545729,95822.0,95821.0,0.210684]
[1746107902937,0.542729,95822.0,95821.0,0.209684]
[1746107903246,0.546729,95822.0,95821.0,0.210684]
[1746107904147,0.216729,95822.0,95821.0,0.210684]
[1746107904344,0.211689,95822.0,95821.0,0.209684]
[1746107904651,0.217729,95822.0,95821.0,0.210684]
[1746107905042,0.218729,95822.0,95821.0,0.210684]
[1746107905344,0.01004,95822.0,95821.0,0.210684]
[1746107905553,0.00604,95822.0,95821.0,0.209684]
[1746107905849,0.217729,95822.0,95821.0,0.210684]
[1746107906441,0.219729,95822.0,95821.0,0.210684]
[1746107907156,0.218729,95822.0,95821.0,0.210684]
[1746107908352,0.218729,95822.0,95821.0,0.362484]
[1746107909251,0.01004,95822.0,95821.0,0.362484]
[1746107909863,0.01,95822.0,95821.0,0.362484]
[1746107910061,0.01004,95822.0,95821.0,0.362484]
[1746107912951,0.01,95822.0,95821.0,0.362484]
[1746107913157,0.01004,95822.0,95821.0,0.362484]
[1746107914755,0.218729,95822.0,95821.0,0.362484]
[1746107915065,0.01004,95822.0,95821.0,0.362484]
[1746107917067,0.218729,95822.0,95821.0,0.362484]
[1746107917261,0.01004,95822.0,95821.0,0.362484]
[1746107917667,0.218729,95822.0,95821.0,0.362484]
[1746107917864,0.218729,95822.0,95821.0,0.521484]
[1746107918566,0.01004,95822.0,95821.0,0.521484]
[1746107919267,0.218729,95822.0,95821.0,0.521484]
[1746107920069,0.01004,95822.0,95821.0,0.521484]
[1746107920966,0.01,95822.0,95821.0,0.521484]
[1746107921166,0.01004,95822.0,95821.0,0.521484]
[1746107921362,0.01,95822.0,95821.0,0.521484]
[1746107921667,0.01004,95822.0,95821.0,0.521484]
[1746107922268,0.20872311,95832.0,95826.0,0.0521699]
[1746107922475,0.1567,95835.0,95827.0,0.3608]
[1746107922766,0.1642,95831.0,95827.0,0.5694772]
[1746107922966,0.2086759,95828.0,95827.0,0.3608]
[1746107923869,0.2086759,95828.0,95827.0,0.3618]
[1746107924264,0.2086759,95828.0,95827.0,0.3608]
[1746107924569,0.2156759,95828.0,95827.0,0.3618]
[1746107925065,0.2086977,95818.0,95806.0,0.3608]
[1746107925273,0.2086977,95818.0,95809.0,0.0521793]
[1746107925471,0.2086977,95818.0,95808.0,0.1599]
[1746107925661,0.2086977,95818.0,95810.0,0.208713]
[1746107925861,0.2086977,95818.0,95810.0,0.0521786]
[1746107926061,0.2086977,95818.0,95812.0,0.2087097]
[1746107926462,0.2086977,95818.0,95813.0,0.2087069]
[1746107926660,0.2086977,95818.0,95811.0,0.2087113]
[1746107926861,0.2086977,95818.0,95812.0,0.2087103]
[1746107927167,0.2106977,95818.0,95811.0,0.0521781]
[1746107927363,0.2106977,95818.0,95815.0,0.0521759]
[1746107927572,0.2136977,95818.0,95815.0,0.0521759]
[1746107927766,0.2136977,95818.0,95816.0,0.1652]
[1746107928166,0.2136977,95818.0,95817.0,0.36954932]
[1746107928373,0.2166977,95818.0,95817.0,0.37054932]
[1746107929170,0.2167377,95818.0,95817.0,0.37054932]
[1746107929769,0.2157377,95818.0,95817.0,0.36954932]
[1746107930163,0.00704,95818.0,95817.0,0.57824922]
[1746107930362,0.2156977,95818.0,95817.0,1.06554922]
[1746107930768,0.2157377,95818.0,95817.0,1.06554922]
[1746107930967,0.2117377,95818.0,95817.0,1.06554922]
[1746107931167,0.2157377,95818.0,95817.0,1.06554922]
[1746107931567,0.2127377,95818.0,95817.0,1.06454922]
[1746107931763,0.2157377,95818.0,95817.0,0.36954932]
[1746107932475,0.2157377,95818.0,95817.0,0.74024922]
[1746107932674,0.2157377,95818.0,95817.0,0.53154932]
[1746107932862,0.2157377,95818.0,95817.0,0.17074932]
[1746107933272,0.2127377,95818.0,95817.0,0.16974932]
[1746107933471,0.2147377,95818.0,95817.0,0.00774932]
[1746107933775,0.2087107,95813.0,95812.0,0.2087099]
[1746107934166,0.5271107,95813.0,95812.0,0.3592099]
[1746107934874,0.5311107,95813.0,95812.0,0.3592099]
[1746107935075,0.5351107,95813.0,95812.0,0.3602099]
[1746107936576,0.5361107,95813.0,95812.0,0.3602099]
[1746107936762,0.5371107,95813.0,95812.0,0.3612099]
[1746107936963,0.01,95813.0,95812.0,0.3689987]
[1746107937168,0.01,95813.0,95812.0,0.8871987]
[1746107937365,0.005,95813.0,95812.0,0.8871987]
[1746107937570,0.2187486,95813.0,95812.0,0.6784888]
[1746107937972,0.2137486,95813.0,95812.0,0.6774888]
[1746107938175,0.01,95813.0,95812.0,0.8871987]
[1746107938676,0.008,95813.0,95812.0,0.8861987]
[1746107939583,0.005,95813.0,95812.0,0.8861987]
[1746107940270,0.2117086,95813.0,95812.0,0.8851987]
[1746107940466,0.2137086,95813.0,95812.0,0.8851987]
[1746107941068,0.2127086,95813.0,95812.0,0.8851987]
[1746107941282,0.004,95813.0,95812.0,0.8851987]
[1746107941480,0.2127086,95813.0,95812.0,0.8851987]
[1746107941676,0.2117086,95813.0,95812.0,0.8851987]
[1746107942178,0.2117086,95813.0,95812.0,0.5190888]
[1746107942376,0.3745086,95813.0,95812.0,0.5190888]
[1746107943177,0.3715086,95813.0,95812.0,0.5190888]
[1746107943480,0.3765086,95813.0,95812.0,0.5190888]
[1746107943781,0.3735086,95813.0,95812.0,0.5190888]
[1746107943973,0.3765086,95813.0,95812.0,0.5200888]
[1746107944167,0.3825086,95813.0,95812.0,0.5210888]
[1746107944372,0.3775086,95813.0,95812.0,0.5200888]
[1746107944681,0.3835086,95813.0,95812.0,0.5210888]
[1746107945080,0.3825086,95813.0,95812.0,0.5210888]
[1746107946976,0.3825086,95813.0,95812.0,0.3705888]
[1746107947179,0.3775086,95813.0,95812.0,0.0087888]
[1746107947378,0.3835086,95813.0,95812.0,0.0097888]
[1746107947783,0.3775086,95813.0,95812.0,0.0087888]
[1746107951791,0.006,95813.0,95812.0,0.5782995]
[1746107952086,0.20875511,95819.0,95818.0,0.2608656]
[1746107952489,0.2087011,95819.0,95818.0,0.2608656]
[1746107952689,0.2087411,95819.0,95818.0,0.2608656]
[1746107953391,0.2157411,95819.0,95818.0,0.2618656]
[1746107953692,0.2227411,95819.0,95818.0,0.002]
[1746107954194,0.2157411,95819.0,95818.0,0.001]
[1746107954399,0.2197411,95819.0,95818.0,0.002]
[1746107954697,0.2197411,95819.0,95818.0,0.2106977]
[1746107954992,0.2157411,95819.0,95818.0,0.2096977]
[1746107956192,0.2117411,95819.0,95818.0,0.2096977]
[1746107956393,0.00304,95819.0,95818.0,0.2096977]
[1746107956595,0.2117355,95819.0,95818.0,0.2096977]
[1746107956987,0.2116955,95819.0,95818.0,0.2106977]
[1746107957195,0.2117355,95819.0,95818.0,0.2106977]
[1746107957495,0.2087355,95819.0,95818.0,0.2106977]
[1746107957698,0.2117355,95819.0,95818.0,0.2106977]
[1746107958095,0.2087355,95819.0,95818.0,0.2106977]
[1746107958395,0.260816,95840.0,95818.0,0.3628]
[1746107958592,0.2086625,95835.0,95834.0,0.5694595]
[1746107958787,0.2086625,95835.0,95834.0,0.8244]
[1746107959196,0.2087025,95835.0,95834.0,0.8244]
[1746107959398,0.2087025,95835.0,95834.0,1.0330628]
[1746107959595,4e-05,95835.0,95834.0,1.0330628]
[1746107959996,0.2086548,95838.0,95837.0,0.2086563]
[1746107960700,0.2086607,95836.0,95835.0,0.2086593]
[1746107961493,0.3634607,95836.0,95835.0,0.2086593]
[1746107961694,0.2086607,95835.0,95834.0,0.5163]
[1746107961893,0.3664607,95835.0,95834.0,0.5163]
[1746107962103,0.3664607,95835.0,95834.0,0.7249628]
[1746107962494,0.001,95836.0,95835.0,0.2086607]
[1746107963195,0.00104,95836.0,95835.0,0.2086607]
[1746107964798,0.2086607,95835.0,95834.0,0.1555]
[1746107964996,0.5354607,95835.0,95834.0,0.1555]
[1746107966003,0.5384607,95835.0,95834.0,0.1555]
[1746107966806,0.5394607,95835.0,95834.0,0.1555]
[1746107967401,0.5374607,95835.0,95834.0,0.1555]
[1746107967606,0.5404607,95835.0,95834.0,0.1555]
[1746107968401,0.3318,95835.0,95826.0,0.3608]
[1746107968593,0.2086781,95827.0,95826.0,0.3608]
[1746107969203,0.2086781,95827.0,95826.0,0.67892989]
[1746107969404,0.2086781,95827.0,95826.0,0.88761019]
[1746107969405,0.5320781,95827.0,95826.0,0.88761019]
[1746107970209,0.5330781,95827.0,95826.0,0.88761019]
[1746107970510,0.5330781,95827.0,95826.0,0.67892989]
[1746107970808,0.546397,95827.0,95826.0,0.67892989]
[1746107971199,0.547397,95827.0,95826.0,0.67892989]
[1746107971810,0.548397,95827.0,95826.0,0.67892989]
[1746107971997,1.013553,95827.0,95826.0,0.12104411]
[1746107972807,1.016553,95827.0,95826.0,0.12104411]
[1746107973009,1.018553,95827.0,95826.0,0.12104411]
[1746107973212,0.2087086,95813.0,95812.0,0.0077888]
[1746107973410,0.2087107,95812.0,95811.0,0.2087124]
[1746107973599,0.3636107,95812.0,95811.0,0.2087124]
[1746107974707,0.001,95813.0,95812.0,0.260888]
[1746107974909,0.2097086,95813.0,95812.0,0.260888]
[1746107975110,0.001,95813.0,95812.0,0.260888]
[1746107975700,0.2097086,95813.0,95812.0,0.2087107]
[1746107976504,0.2087086,95813.0,95812.0,0.2087107]
[1746107976710,0.2097112,95812.0,95811.0,0.2087129]
[1746107977310,0.2087112,95812.0,95811.0,0.2087129]
[1746107978011,0.19667333,95812.0,95811.0,0.2087129]
[1746107978213,0.001,95812.0,95809.0,0.1538]
[1746107978414,0.3179,95819.0,95810.0,0.1593]
[1746107978708,0.1679,95811.0,95810.0,0.1593]
[1746107979210,0.1679,95811.0,95810.0,0.314]
[1746107981304,0.1689,95811.0,95810.0,0.314]
[1746107982609,0.1689,95811.0,95810.0,0.32177611]
[1746107983802,0.001,95811.0,95810.0,0.32177611]
[1746107984512,0.3195,95824.0,95810.0,0.32177611]
[1746107984709,0.001,95811.0,95810.0,0.32177611]
[1746107984913,0.00013287,95834.0,95811.0,0.10437269]
[1746107985115,0.00013287,95834.0,95833.0,0.3608]
[1746107985413,0.3144,95845.0,95833.0,0.3608]